[Event "Eurasia Open Cup 2018"]
[Site "Jekaterienburg"]
[Date "2018.08.07"]
[Round "6"]
[White "Gutenev, Alexander"]
[Black "Shapiro, David"]
[Result "1-0"]
[ECO "C42"]
[WhiteElo "2470"]
[BlackElo "2326"]
[Annotator "ChessBase"]
[PlyCount "135"]
[EventDate "2018.08.01"]
[EventType "swiss"]
[EventCountry "RUS"]
[SourceTitle "playchess.com"]
[Source "ChessBase"]
[SourceQuality "1"]
[TimeControl "5400+30"]

1. e4 {[%emt 0:00:00]} e5 {[%emt 0:00:06]} 2. Nf3 {[%emt 0:00:05]} Nf6 {[%emt 0:00:05]} 3. Nxe5 {[%emt 0:00:59]} d6 {[%emt 0:00:06]} 4. Nf3 {[%emt 0:00:05]} Nxe4 {[%emt 0:00:05]} 5. Nc3 {[%emt 0:00:27]} Nxc3 {[%emt 0:00:09]} 6. dxc3 {[%emt 0:00:06]} Be7 {[%emt 0:00:15]} 7. Be3 {[%emt 0:00:09]} Nd7 {[%emt 0:00:30]} 8. Qd2 {[%emt 0:02:13]} O-O {[%emt 0:00:20]} 9. O-O-O {[%emt 0:01:00]} Ne5 {[%emt 0:00:41]} 10. Nd4 {[%emt 0:02:14]} c5 {[%emt 0:02:04]} 11. Nb5 {[%emt 0:18:52]} Qa5 {[%emt 0:16:49]} 12. Na3 {[%emt 0:00:32]} Be6 {[%emt 0:08:30]} 13. f4 {[%emt 0:05:04]} Ng4 {[%emt 0:02:03]} 14. h3 {[%emt 0:07:10]} Nxe3 {[%emt 0:01:39]} 15. Qxe3 {[%emt 0:00:04]} Rfe8 {[%emt 0:01:44]} 16. Bb5 {[%emt 0:01:27]} Rec8 {[%emt 0:10:46]} 17. f5 {[%emt 0:05:15]} Qd8 {[%emt 0:00:13]} 18. Qe4 {[%emt 0:03:50]} Bxa2 {[%emt 0:19:21]} 19. b3 {[%emt 0:00:42]} c4 {[%emt 0:00:50]} 20. Kb2 {[%emt 0:02:50]} cxb3 {[%emt 0:11:06]} 21. cxb3 {[%emt 0:01:09]} Bxb3 {[%emt 0:00:20]} 22. Kxb3 {[%emt 0:00:55]} Bf6 {[%emt 0:03:10]} 23. Rd3 {[%emt 0:04:03]} d5 {[%emt 0:02:21]} 24. Qxd5 {[%emt 0:06:10]} Rxc3+ {[%emt 0:01:33]} 25. Ka2 {[%emt 0:00:14]} Qa5 {[%emt 0:01:58]} 26. Rxc3 {[%emt 0:00:08]} Qxc3 {[%emt 0:00:07]} 27. Qb3 {[%emt 0:00:17]} Qd2+ {[%emt 0:04:58]} 28. Qc2 {[%emt 0:00:31]} Qa5 {[%emt 0:00:09]} 29. Bc4 {[%emt 0:05:58]} Be7 {[%emt 0:02:19]} 30. Qb3 {[%emt 0:01:38]} Rd8 {[%emt 0:00:11]} 31. Rb1 {[%emt 0:01:52]} Rd2+ {[%emt 0:02:55]} 32. Rb2 {[%emt 0:00:55]} Rxb2+ {[%emt 0:01:03]} 33. Kxb2 {[%emt 0:01:34]} Qxf5 {[%emt 0:05:15]} 34. Qxb7 {[%emt 0:02:10]} Qe5+ {[%emt 0:01:01]} 35. Ka2 {[%emt 0:00:49]} g6 {[%emt 0:02:12]} 36. Qxa7 {[%emt 0:01:53]} Kg7 {[%emt 0:00:36]} 37. Nc2 {[%emt 0:00:04]} Qf6 {[%emt 0:00:30]} 38. Kb3 {[%emt 0:00:50]} Bd8 {[%emt 0:00:19]} 39. Qd7 {[%emt 0:02:12]} Qe7 {[%emt 0:00:28]} 40. Qd5 {[%emt 0:00:43]} Bc7 {[%emt 0:00:37]} 41. Nb4 {[%emt 0:00:22]} Bd6 {[%emt 0:00:21]} 42. Nd3 {[%emt 0:00:17]} h5 {[%emt 0:00:21]} 43. Kc3 {[%emt 0:00:50]} Bc7 {[%emt 0:00:50]} 44. Kd2 {[%emt 0:00:34]} Bd6 {[%emt 0:00:07]} 45. Kd1 {[%emt 0:00:23]} Bc7 {[%emt 0:00:46]} 46. Bb3 {[%emt 0:01:33]} Bd6 {[%emt 0:00:15]} 47. Nf2 {[%emt 0:00:58]} Bc7 {[%emt 0:00:50]} 48. Ne4 {[%emt 0:00:03]} Qd8 {[%emt 0:00:34]} 49. Ng5 {[%emt 0:00:22]} Kf6 {[%emt 0:00:32]} 50. Qxd8+ {[%emt 0:00:35]} Bxd8 {[%emt 0:00:01]} 51. Nxf7 {[%emt 0:00:13]} Bc7 {[%emt 0:00:02]} 52. Ke2 {[%emt 0:00:15]} Kf5 {[%emt 0:01:23]} 53. Kf3 {[%emt 0:00:06]} Kf6 {[%emt 0:00:16]} 54. Ke4 {[%emt 0:00:12]} Ba5 {[%emt 0:00:48]} 55. Nd6 {[%emt 0:00:09]} Bb4 {[%emt 0:00:18]} 56. Nc4 {[%emt 0:00:06]} Bc3 {[%emt 0:00:39]} 57. Bc2 {[%emt 0:00:02]} Ba1 {[%emt 0:00:21]} 58. Ne3 {[%emt 0:00:06]} g5 {[%emt 0:00:42]} 59. Nd5+ {[%emt 0:00:23]} Kg6 {[%emt 0:00:16]} 60. Ba4 {[%emt 0:00:55]} Bb2 {[%emt 0:00:41]} 61. Be8+ {[%emt 0:00:10]} Kh6 {[%emt 0:00:02]} 62. Ne7 {[%emt 0:00:44]} h4 {[%emt 0:00:23]} 63. Nf5+ {[%emt 0:00:07]} Kh7 {[%emt 0:00:02]} 64. Bf7 {[%emt 0:00:11]} Bc3 {[%emt 0:00:26]} 65. Kf3 {[%emt 0:00:05]} Bb2 {[%emt 0:00:31]} 66. Kg4 {[%emt 0:00:04]} Bc1 {[%emt 0:00:05]} 67. Kh5 {[%emt 0:00:04]} Kh8 {[%emt 0:01:18]} 68. Kg6 {[%emt 0:00:32]} 1-0

[Event "Eurasia Open Cup 2018"]
[Site "Jekaterienburg"]
[Date "2018.08.07"]
[Round "6"]
[White "Fotin, Vladimir"]
[Black "Isanzhulov, Arystan"]
[Result "0-1"]
[ECO "E61"]
[WhiteElo "2359"]
[BlackElo "2146"]
[Annotator "NA"]
[PlyCount "160"]
[EventDate "2018.08.01"]
[EventType "swiss"]
[EventCountry "RUS"]
[SourceTitle "playchess.com"]
[Source "ChessBase"]
[SourceQuality "1"]
[TimeControl "5400+30"]

1. d4 {[%emt 0:00:00]} Nf6 {[%emt 0:00:00]} 2. Nf3 {[%emt 0:00:00]} d6 {[%emt 0:00:00]} 3. c4 {[%emt 0:00:00]} g6 {[%emt 0:01:03]} 4. Nc3 {[%emt 0:02:55]} Bf5 {[%emt 0:05:42]} 5. Nh4 {[%emt 0:04:34]} Bd7 {[%emt 0:01:56]} 6. e4 {[%emt 0:01:40]} e5 {[%emt 0:00:26]} 7. Nf3 {[%emt 0:00:32] E61: King's Indian: Early deviations for White, including Smyslov System} (7. dxe5 dxe5 8. Nf3 Nc6 9. Be2 Bg7 10. O-O O-O 11. h3 Be6 12. Be3 Qxd1 13. Rfxd1 Rfd8 14. Nd5 Nxe4 15. Nxc7 Rac8 16. Nxe6 fxe6 17. Bd3 Nf6 18. Ng5 Nb4 19. Bf1 Nc2 20. Nxe6 Rxd1 21. Rxd1 Nxe3 22. fxe3 {½-½ (97) Li,C (2751)-Mamedov,R (2650) Huaian 2016}) 7... exd4 {[%emt 0:00:41]} 8. Nxd4 {[%emt 0:00:44]} Bg7 {[%emt 0:02:15]} 9. Be2 {[%emt 0:00:31]} O-O {[%emt 0:01:44]} 10. O-O {[%emt 0:01:05]} Nc6 {[%emt 0:02:49]} 11. Be3 {[%emt 0:00:25]} Re8 {[%emt 0:05:49]} 12. f3 {[%emt 0:00:34]} a5 {[%emt 0:00:19]} 13. Ndb5 {[%emt 0:00:27]} Be6 $146 {[%emt 0:00:48]} ({Predecessor:} 13... Ne5 14. Qd2 Be6 {1-0 (42) Urban,K (2450)-Benoit,M (2250) Bagneux 1993}) 14. Qd2 {[%emt 0:01:14]} Nb4 {[%emt 0:07:47]} 15. Rfd1 {[%emt 0:04:20]} Nd7 {[%emt 0:20:31]} 16. a3 {[%emt 0:07:12]} Na6 {[%emt 0:01:11]} 17. Rab1 {[%emt 0:25:06]} Qe7 {[%emt 0:03:31]} (17... f5 $14) 18. Nd4 {[%emt 0:04:32]} Ne5 {[%emt 0:12:28]} 19. b3 {[%emt 0:03:10]} Nc6 {[%emt 0:07:19]} 20. Ndb5 {[%emt 0:04:20]} f5 $16 {[%emt 0:04:49]} 21. exf5 {[%emt 0:08:12]} Bxf5 {[%emt 0:10:10]} 22. Nd5 {[%emt 0:01:41]} Qf7 {[%emt 0:00:57]} 23. Bd3 {[%emt 0:00:12]} Bxd3 {[%emt 0:00:40]} 24. Qxd3 {[%emt 0:00:45]} Ne5 {[%emt 0:00:28]} 25. Qc2 {[%emt 0:00:08]} Re6 {[%emt 0:00:41]} 26. Nd4 {[%emt 0:02:36]} Ree8 {[%emt 0:01:51]} 27. Bf2 {[%emt 0:05:30]} Rf8 {[%emt 0:00:09]} 28. Re1 {[%emt 0:00:48]} Rae8 {[%emt 0:02:31]} 29. h3 {[%emt 0:05:24]} Nc5 {[%emt 0:01:24]} 30. Rbd1 {[%emt 0:01:27]} c6 {[%emt 0:01:05]} 31. Nc3 {[%emt 0:00:41]} a4 {[%emt 0:01:00]} 32. b4 {[%emt 0:00:52]} Nb3 {[%emt 0:00:58]} 33. Ne4 {[%emt 0:00:34]} Rd8 {[%emt 0:00:00]} 34. Nxb3 {[%emt 0:05:08]} axb3 {[%emt 0:01:46]} 35. Qxb3 {[%emt 0:01:49]} Qxc4 {[%emt 0:00:03]} 36. Qxc4+ {[%emt 0:00:07]} Nxc4 {[%emt 0:00:13]} 37. Bh4 {[%emt 0:02:31]} Rd7 {[%emt 0:00:01]} 38. Nc5 {[%emt 0:01:06]} Rdf7 {[%emt 0:01:18]} 39. Ne6 {[%emt 0:01:01]} Re8 {[%emt 0:00:04]} 40. Nxg7 {[%emt 0:00:13]} Rxe1+ {[%emt 0:00:53]} 41. Rxe1 {[%emt 0:01:06]} Kxg7 {[%emt 0:00:35]} 42. a4 {[%emt 0:00:12]} Nb6 {[%emt 0:00:16]} 43. a5 {[%emt 0:00:21]} Nd5 {[%emt 0:00:35]} 44. Bg3 {[%emt 0:01:19]} Rd7 {[%emt 0:00:01]} 45. Rb1 {[%emt 0:01:11]} Nc3 {[%emt 0:00:29]} 46. Rb2 {[%emt 0:00:11]} Kf7 {[%emt 0:00:49]} 47. Be1 {[%emt 0:00:22]} Nb5 {[%emt 0:00:22]} 48. Kf2 {[%emt 0:00:54]} Re7 {[%emt 0:00:08]} 49. g4 {[%emt 0:00:31]} Re5 {[%emt 0:00:43]} 50. Ra2 {[%emt 0:01:21]} Ke6 {[%emt 0:00:51]} 51. a6 {[%emt 0:01:33]} bxa6 {[%emt 0:01:16]} 52. Rxa6 {[%emt 0:00:46]} Kd5 {[%emt 0:00:22]} 53. Bd2 {[%emt 0:00:04]} Re7 {[%emt 0:00:20]} 54. h4 {[%emt 0:01:03]} Ra7 {[%emt 0:00:19]} 55. Rxa7 {[%emt 0:00:50]} Nxa7 {[%emt 0:01:05]} 56. Ke3 {[%emt 0:00:07]} Nb5 {[%emt 0:00:01]} 57. h5 {[%emt 0:00:08]} gxh5 {[%emt 0:00:13]} 58. gxh5 {[%emt 0:00:57]} Ke5 {[%emt 0:00:39]} 59. h6 {[%emt 0:00:05]} Nc7 {[%emt 0:00:03]} 60. Kd3 {[%emt 0:00:17]} Ne6 {[%emt 0:01:24]} 61. Kc4 {[%emt 0:00:57]} Kf5 {[%emt 0:00:27]} 62. Kd3 {[%emt 0:01:13]} Ng5 {[%emt 0:00:36]} 63. Ke3 {[%emt 0:00:36]} Kg6 {[%emt 0:00:38]} 64. Kf4 {[%emt 0:00:33]} Nf7 {[%emt 0:00:46]} 65. Ke4 {[%emt 0:00:40]} Nxh6 {[%emt 0:00:15]} 66. Bf4 {[%emt 0:00:31]} Nf7 {[%emt 0:00:08]} 67. Bg3 {[%emt 0:00:20]} Kf6 {[%emt 0:00:50]} 68. Bh4+ {[%emt 0:00:32]} Ke6 {[%emt 0:00:20]} 69. Kd4 {[%emt 0:00:34]} Kf5 {[%emt 0:01:23]} 70. Bg3 {[%emt 0:00:26]} h5 {[%emt 0:00:12]} 71. Kd3 {[%emt 0:00:19]} Ne5+ {[%emt 0:00:29]} 72. Ke3 {[%emt 0:00:09]} d5 {[%emt 0:00:48]} 73. Bf2 {[%emt 0:00:12]} Nc4+ {[%emt 0:00:34]} 74. Kd4 {[%emt 0:00:32]} Ne5 {[%emt 0:00:30]} 75. b5 {[%emt 0:00:20]} Nxf3+ {[%emt 0:00:16]} 76. Kc5 {[%emt 0:01:17]} cxb5 {[%emt 0:00:47]} 77. Kxd5 {[%emt 0:00:07]} b4 {[%emt 0:00:05]} 78. Kc4 {[%emt 0:00:06]} Ne5+ {[%emt 0:00:33]} 79. Kb3 {[%emt 0:00:26]} Kg4 {[%emt 0:00:04]} 80. Bd4 {[%emt 0:00:14]} Nc6 {[%emt 0:00:14]} 0-1

[Event "Eurasia Open Cup 2018"]
[Site "Jekaterienburg"]
[Date "2018.08.07"]
[Round "6"]
[White "Obgolts, Erik"]
[Black "Kozionov, Kirill"]
[Result "1/2-1/2"]
[ECO "B51"]
[WhiteElo "2334"]
[BlackElo "2461"]
[Annotator "ChessBase"]
[PlyCount "129"]
[EventDate "2018.08.01"]
[EventType "swiss"]
[EventCountry "RUS"]
[SourceTitle "playchess.com"]
[Source "ChessBase"]
[SourceQuality "1"]
[TimeControl "5400+30"]

1. e4 {[%emt 0:00:00]} c5 {[%emt 0:00:00]} 2. Nf3 {[%emt 0:00:00]} d6 {[%emt 0:00:52]} 3. Bb5+ {[%emt 0:00:00]} Nd7 {[%emt 0:00:00]} 4. O-O {[%emt 0:00:00]} a6 {[%emt 0:00:00]} 5. Bd3 {[%emt 0:00:00]} Ngf6 {[%emt 0:01:16]} 6. Re1 {[%emt 0:00:00]} b5 {[%emt 0:03:55]} 7. c4 {[%emt 0:00:00]} Ne5 {[%emt 0:01:23]} 8. Bf1 {[%emt 0:00:00]} Nxc4 {[%emt 0:05:12]} 9. a4 {[%emt 0:00:14]} Bd7 {[%emt 0:01:46]} 10. d4 {[%emt 0:00:21]} cxd4 {[%emt 0:01:57]} 11. Nxd4 {[%emt 0:00:37]} e5 {[%emt 0:15:14]} 12. axb5 {[%emt 0:00:00]} exd4 {[%emt 0:03:39]} 13. Bxc4 {[%emt 0:00:00]} axb5 {[%emt 0:00:18]} 14. Rxa8 {[%emt 0:00:25]} Qxa8 {[%emt 0:00:03]} 15. Bb3 {[%emt 0:01:17]} Be7 {[%emt 0:11:53]} 16. Qxd4 {[%emt 0:00:52]} O-O {[%emt 0:00:19]} 17. Nc3 {[%emt 0:04:07]} Bc6 {[%emt 0:03:36]} 18. Bf4 {[%emt 0:12:14]} Rd8 {[%emt 0:06:04]} 19. h3 {[%emt 0:11:45]} Nh5 {[%emt 0:08:06]} 20. Nd5 {[%emt 0:03:47]} Bxd5 {[%emt 0:07:36]} 21. Bxd5 {[%emt 0:01:01]} Qc8 {[%emt 0:00:35]} 22. Be3 {[%emt 0:06:00]} Nf6 {[%emt 0:00:38]} 23. Rc1 {[%emt 0:03:14]} Qb8 {[%emt 0:00:33]} 24. Bb3 {[%emt 0:01:24]} Rc8 {[%emt 0:03:04]} 25. Rxc8+ {[%emt 0:12:52]} Qxc8 {[%emt 0:00:05]} 26. e5 {[%emt 0:00:50]} dxe5 {[%emt 0:01:34]} 27. Qxe5 {[%emt 0:00:00]} Qb7 {[%emt 0:01:35]} 28. g4 {[%emt 0:02:10]} Ne8 {[%emt 0:06:06]} 29. Bc2 {[%emt 0:07:34]} Nd6 {[%emt 0:02:11]} 30. Bc5 {[%emt 0:02:12]} Qc7 {[%emt 0:01:24]} 31. b4 {[%emt 0:01:17]} Bf8 {[%emt 0:00:00]} 32. Bb3 {[%emt 0:04:25]} Qd8 {[%emt 0:04:33]} 33. Bd5 {[%emt 0:03:01]} Qd7 {[%emt 0:02:00]} 34. Bf3 {[%emt 0:01:26]} h6 {[%emt 0:03:50]} 35. Kg2 {[%emt 0:01:26]} Qd8 {[%emt 0:00:00]} 36. Qd5 {[%emt 0:03:16]} Qf6 {[%emt 0:00:57]} 37. Kg3 {[%emt 0:04:44]} Be7 {[%emt 0:01:50]} 38. Bd4 {[%emt 0:01:46]} Qg6 {[%emt 0:01:25]} 39. Bc5 {[%emt 0:00:56]} Qf6 {[%emt 0:00:28]} 40. Kg2 {[%emt 0:02:23]} Bf8 {[%emt 0:01:41]} 41. h4 {[%emt 0:03:50]} Qf4 {[%emt 0:00:44]} 42. Qd4 {[%emt 0:01:40]} Qxd4 {[%emt 0:00:54]} 43. Bxd4 {[%emt 0:00:04]} Ne8 {[%emt 0:00:58]} 44. Bc6 {[%emt 0:01:04]} Nc7 {[%emt 0:00:13]} 45. Be5 {[%emt 0:00:39]} Na6 {[%emt 0:00:22]} 46. Bxb5 {[%emt 0:00:44]} Nxb4 {[%emt 0:00:04]} 47. Bc4 {[%emt 0:00:14]} Nc6 {[%emt 0:00:30]} 48. Bc7 {[%emt 0:00:50]} Be7 {[%emt 0:00:36]} 49. h5 {[%emt 0:00:28]} Nd4 {[%emt 0:01:00]} 50. f4 {[%emt 0:00:29]} Kf8 {[%emt 0:00:42]} 51. Bb6 {[%emt 0:00:59]} Ne6 {[%emt 0:00:09]} 52. Kf3 {[%emt 0:01:13]} Bf6 {[%emt 0:00:56]} 53. Ke4 {[%emt 0:00:32]} Bb2 {[%emt 0:00:28]} 54. Be3 {[%emt 0:00:16]} Bf6 {[%emt 0:00:16]} 55. Bc1 {[%emt 0:00:49]} Kg8 {[%emt 0:00:25]} 56. Kd5 {[%emt 0:00:36]} Kf8 {[%emt 0:01:12]} 57. Bd2 {[%emt 0:00:59]} Bh4 {[%emt 0:00:21]} 58. Ke4 {[%emt 0:00:26]} Bf6 {[%emt 0:00:30]} 59. Bb4+ {[%emt 0:00:29]} Be7 {[%emt 0:00:48]} 60. Bc3 {[%emt 0:00:04]} Bd6 {[%emt 0:00:17]} 61. Bxe6 {[%emt 0:01:19]} fxe6 {[%emt 0:00:03]} 62. g5 {[%emt 0:00:19]} hxg5 {[%emt 0:00:48]} 63. fxg5 {[%emt 0:00:04]} g6 {[%emt 0:00:38]} 64. hxg6 {[%emt 0:00:15]} Kg8 {[%emt 0:00:10]} 65. Bf6 {[%emt 0:00:13]} 1/2-1/2

[Event "Eurasia Open Cup 2018"]
[Site "Jekaterienburg"]
[Date "2018.08.07"]
[Round "6"]
[White "Grachev, Alexey"]
[Black "Makhmutov, Rail"]
[Result "1-0"]
[ECO "C24"]
[WhiteElo "2277"]
[BlackElo "2416"]
[Annotator "NA"]
[PlyCount "96"]
[EventDate "2018.08.01"]
[EventType "swiss"]
[EventCountry "RUS"]
[SourceTitle "playchess.com"]
[Source "ChessBase"]
[SourceQuality "1"]
[TimeControl "5400+30"]

1. e4 {[%emt 0:00:00]} e5 {[%emt 0:00:00]} 2. Nf3 {[%emt 0:00:00]} Nc6 {[%emt 0:00:03]} 3. Bc4 {[%emt 0:00:00]} Bc5 {[%emt 0:00:00]} 4. O-O {[%emt 0:00:36]} Nf6 {[%emt 0:00:44]} 5. d3 {[%emt 0:00:26]} O-O {[%emt 0:00:39]} 6. h3 {[%emt 0:02:59]} d5 {[%emt 0:03:33]} 7. exd5 {[%emt 0:00:26]} Nxd5 {[%emt 0:00:03]} 8. Nbd2 {[%emt 0:02:01] C24: Bishop's Opening: 2...Nf6} (8. Re1 Be6 9. c3 Bb6 10. Bb3 Re8 11. Na3 f6 12. d4 exd4 13. c4 Ndb4 14. c5 Bxb3 15. Qxb3+ Qd5 16. Qxd5+ Nxd5 17. cxb6 Rxe1+ 18. Nxe1 axb6 {1-0 (30) Volokitin,A (2632)-Shirov,A (2644) Berlin 2018}) 8... Kh8 {[%emt 0:11:30]} 9. Re1 {[%emt 0:05:22]} f6 {[%emt 0:02:31]} 10. c3 {[%emt 0:12:49]} Nb6 $146 {[%emt 0:04:11]} ({Predecessor:} 10... a6 11. Nb3 Ba7 12. d4 b5 13. Bf1 Re8 14. a4 bxa4 15. Rxa4 e4 {1-0 (29) Vevera,R (2077)-Bargel,M (2101) Rakovnik 2014}) 11. Bb5 {[%emt 0:01:17]} a6 {[%emt 0:01:05]} 12. Bxc6 {[%emt 0:00:00]} bxc6 {[%emt 0:00:00]} 13. d4 {[%emt 0:00:43]} exd4 {[%emt 0:00:26]} 14. Ne4 {[%emt 0:01:50]} Be7 {[%emt 0:05:22]} 15. Nxd4 {[%emt 0:06:27]} c5 {[%emt 0:08:40]} 16. Nc6 {[%emt 0:07:38]} Qxd1 {[%emt 0:00:00]} 17. Rxd1 {[%emt 0:00:31]} Bb7 {[%emt 0:00:36]} 18. Nxe7 {[%emt 0:00:06]} Bxe4 {[%emt 0:00:06]} 19. Re1 {[%emt 0:00:28]} Bd3 {[%emt 0:10:06]} 20. b3 {[%emt 0:05:49]} Rfe8 {[%emt 0:14:18]} 21. c4 {[%emt 0:17:46]} Nc8 $1 {[%emt 0:03:09]} 22. Re3 {[%emt 0:00:00]} Rxe7 {[%emt 0:00:14]} 23. Rxd3 {[%emt 0:00:00]} Re1+ {[%emt 0:00:39]} 24. Kh2 {[%emt 0:00:15]} Nd6 {[%emt 0:11:56]} 25. Bb2 {[%emt 0:01:26]} Re2 {[%emt 0:02:23]} 26. Ba3 {[%emt 0:00:20]} Rxf2 {[%emt 0:00:56]} (26... Nb7 $14) 27. Bxc5 {[%emt 0:00:00]} Rc2 {[%emt 0:00:32]} 28. Bxd6 {[%emt 0:01:11]} cxd6 $16 {[%emt 0:01:46]} 29. Rxd6 {[%emt 0:00:03]} h6 {[%emt 0:02:10]} 30. Rd3 {[%emt 0:09:19]} Re8 {[%emt 0:02:17]} 31. a3 {[%emt 0:01:31]} a5 {[%emt 0:01:28]} 32. a4 {[%emt 0:01:08]} Ree2 {[%emt 0:00:30]} 33. Rg3 {[%emt 0:00:10]} f5 {[%emt 0:05:49]} 34. Rf1 {[%emt 0:01:06]} Re5 {[%emt 0:00:00]} 35. h4 {[%emt 0:03:48]} Kh7 {[%emt 0:01:10]} 36. Rf4 {[%emt 0:00:55]} Rc1 {[%emt 0:04:03]} 37. Rgf3 {[%emt 0:01:50]} Kg6 {[%emt 0:01:40]} 38. Rd3 {[%emt 0:08:00]} Rb1 {[%emt 0:02:00]} 39. Rg3+ {[%emt 0:02:15]} Kh5 {[%emt 0:01:50]} 40. Rxg7 {[%emt 0:02:57]} Rxb3 {[%emt 0:00:02]} 41. g3 {[%emt 0:00:35]} Re2+ {[%emt 0:01:27]} 42. Kh3 {[%emt 0:00:08]} Rxg3+ {[%emt 0:00:33]} 43. Kxg3 {[%emt 0:00:51]} Rg2+ {[%emt 0:00:15]} 44. Kf3 {[%emt 0:00:41]} Rg3+ {[%emt 0:00:18]} 45. Ke2 {[%emt 0:00:37]} Re3+ {[%emt 0:00:56]} 46. Kf1 {[%emt 0:00:38]} Re1+ {[%emt 0:00:08]} 47. Kg2 {[%emt 0:00:27]} Rg1+ {[%emt 0:00:13]} 48. Kf2 {[%emt 0:00:17]} Rf1+ {[%emt 0:01:13]} 1-0